fUST/lending_fUST_20250801
["ID","MTS","AMOUNT","RATE_DAILY","PERIOD"]
[376476776,1753991443683,-460.0,0.00019178,2]
[376476778,1753991443692,-411.87386986,0.00019178,2]
[376476779,1753991443702,-460.0,0.00019178,2]
[376476782,1753991443713,-460.0,0.00019178,2]
[376476784,1753991443723,-482.75,0.00019178,2]
[376476786,1753991443731,-855.72,0.00019178,2]
[376476789,1753991443741,-460.0,0.00019178,2]
[376476792,1753991443750,-460.0,0.00019178,2]
[376476794,1753991443759,-450.68760562,0.00019178,2]
[376476796,1753991443769,-461.20281249,0.00019178,2]
[376476798,1753991443779,-460.0,0.00019178,2]
[376476800,1753991443789,-1201.33,0.00019178,2]
[376476802,1753991443798,-460.0,0.00019178,2]
[376476804,1753991443808,-460.0,0.00019178,2]
[376476806,1753991443818,-460.0,0.00019178,2]
[376476808,1753991443827,-511.46,0.00019178,2]
[376476810,1753991443836,-517.05424313,0.00019178,2]
[376476812,1753991443846,-994.83,0.00019178,2]
[376476813,1753991443855,-460.0,0.00019178,2]
[376476815,1753991443865,-460.88885659,0.00019178,2]
[376476818,1753991443875,-460.0,0.00019178,2]
[376476820,1753991443886,-921.03,0.00019178,2]
[376476822,1753991443896,-460.0,0.00019178,2]
[376476824,1753991443906,-460.0,0.00019178,2]
[376476826,1753991443916,-460.0,0.00019178,2]
[376476828,1753991443925,-808.59,0.00019178,2]
[376476830,1753991443934,-203.44712819,0.00019178,2]
[376476832,1753991443943,-460.0,0.00019178,2]
[376476834,1753991443953,-460.0,0.00019178,2]
[376476836,1753991443962,-185.003036,0.00019178,2]
[376476837,1753991443971,-500.0,0.00019178,2]
[376476839,1753991443980,-5000.0,0.00019178,2]
[376476841,1753991443989,-392.34892772,0.00019284,2]
[376476843,1753991443998,-216.18812866,0.00019341,2]
[376476845,1753991444008,-12642.0599901,0.00019341,2]
[376476847,1753991444017,-160.0,0.00019341,2]
[376476849,1753991444026,-214.99831783,0.00019341,2]
[376476851,1753991444036,-177.696923,0.00019399,2]
[376476853,1753991444045,-160.599,0.00019427,2]
[376476855,1753991444054,-151.0,0.00019452,2]
[376476857,1753991444064,-151.0,0.00019452,2]
[376476859,1753991444073,-203.211659,0.00019452,2]
[376476861,1753991444083,-460.0,0.00019452,2]
[376476863,1753991444092,-460.0,0.00019452,2]
[376476866,1753991444102,-460.0,0.00019452,2]
[376476868,1753991444112,-460.0,0.00019452,2]
[376476870,1753991444122,-460.0,0.00019452,2]
[376476872,1753991444132,-460.0,0.00019452,2]
[376476873,1753991444141,-460.0,0.00019452,2]
[376476876,1753991444150,-460.0,0.00019452,2]
[376476878,1753991444161,-460.0,0.00019452,2]
[376476880,1753991444170,-595.04,0.00019452,2]
[376476882,1753991444180,-460.0,0.00019452,2]
[376476883,1753991444189,-606.49,0.00019452,2]
[376476885,1753991444198,-460.0,0.00019452,2]
[376476887,1753991444208,-575.94,0.00019452,2]
[376476889,1753991444218,-460.0,0.00019452,2]
[376476891,1753991444227,-743.5,0.00019452,2]
[376476894,1753991444237,-460.0,0.00019452,2]
[376476896,1753991444246,-524.53,0.00019452,2]
[376476899,1753991444256,-460.0,0.00019452,2]
[376476901,1753991444266,-460.0,0.00019452,2]
[376476902,1753991444275,-460.0,0.00019452,2]
[376476904,1753991444285,-1106.86,0.00019452,2]
[376476906,1753991444294,-460.0,0.00019452,2]
[376476908,1753991444303,-460.0,0.00019452,2]
[376476910,1753991444312,-460.0,0.00019452,2]
[376476912,1753991444322,-460.0,0.00019452,2]
[376476915,1753991444332,-560.56,0.00019452,2]
[376476917,1753991444342,-460.0,0.00019452,2]
[376476918,1753991444351,-460.0,0.00019452,2]
[376476921,1753991444360,-460.0,0.00019452,2]
[376476923,1753991444370,-460.0,0.00019452,2]
[376476925,1753991444381,-460.0,0.00019452,2]
[376476927,1753991444390,-536.26,0.00019452,2]
[376476929,1753991444399,-704.63,0.00019452,2]
[376476931,1753991444408,-460.0,0.00019452,2]
[376476932,1753991444417,-460.0,0.00019452,2]
[376476934,1753991444428,-460.0,0.00019452,2]
[376476937,1753991444438,-488.99,0.00019452,2]
[376476938,1753991444448,-460.0,0.00019452,2]
[376476941,1753991444458,-460.0,0.00019452,2]
[376476943,1753991444467,-460.0,0.00019452,2]
[376476945,1753991444477,-460.0,0.00019452,2]
[376476947,1753991444486,-460.0,0.00019452,2]
[376476948,1753991444496,-460.0,0.00019452,2]
[376476951,1753991444508,-460.0,0.00019452,2]
[376476968,1753991444662,-460.0,0.00019452,2]
[376476970,1753991444672,-460.0,0.00019452,2]
[376476972,1753991444681,-489.32238134,0.00019452,2]
[376476974,1753991444691,-460.0,0.00019452,2]
[376476976,1753991444700,-737.34,0.00019452,2]
[376476978,1753991444709,-460.0,0.00019452,2]
[376476980,1753991444718,-568.32,0.00019452,2]
[376476982,1753991444728,-525.69,0.00019452,2]
[376476984,1753991444737,-460.0,0.00019452,2]
[376476986,1753991444746,-460.0,0.00019452,2]
[376476988,1753991444756,-460.0,0.00019452,2]
[376476990,1753991444765,-460.0,0.00019452,2]
[376476992,1753991444775,-460.0,0.00019452,2]
[376476994,1753991444784,-460.0,0.00019452,2]
[376476996,1753991444793,-460.0,0.00019452,2]
[376476998,1753991444802,-253.58668833,0.00019452,2]
[376477000,1753991444812,-460.0,0.00019452,2]
[376477002,1753991444821,-3017.45,0.00019452,2]
[376477004,1753991444831,-460.0,0.00019452,2]
[376477006,1753991444840,-460.0,0.00019452,2]
[376477008,1753991444849,-497.4,0.00019452,2]
[376477010,1753991444858,-460.0,0.00019452,2]
[376477012,1753991444868,-259.05735097,0.00019452,2]
[376477014,1753991444877,-8884.18,0.00019452,2]
[376477016,1753991444890,-460.0,0.00019452,2]
[376477018,1753991444899,-668.54,0.00019452,2]
[376477020,1753991444908,-766.5,0.00019452,2]
[376477021,1753991444918,-460.0,0.00019452,2]
[376477023,1753991444927,-3749.32,0.00019452,2]
[376477025,1753991444936,-833.17,0.00019452,2]
[376477027,1753991444947,-460.0,0.00019452,2]
[376477029,1753991444957,-736.72,0.00019452,2]
[376477031,1753991444966,-1856.34,0.00019452,2]
[376477033,1753991444975,-465.30927269,0.00019452,2]
[376477035,1753991444984,-460.0,0.00019452,2]
[376477036,1753991444994,-5969.71,0.00019452,2]
[376477037,1753991445003,-791.01,0.00019452,2]
[376477038,1753991445012,-460.0,0.00019452,2]
[376477039,1753991445022,-923.32,0.00019452,2]
[376477041,1753991445031,-460.0,0.00019452,2]
[376477043,1753991445044,-1964.36,0.00019452,2]
[376477045,1753991445053,-1028.7,0.00019452,2]
[376477047,1753991445063,-460.0,0.00019452,2]
[376477049,1753991445072,-460.0,0.00019452,2]
[376477051,1753991445082,-534.04,0.00019452,2]
[376477053,1753991445091,-2073.39,0.00019452,2]
[376477054,1753991445101,-1824.53,0.00019452,2]
[376477055,1753991445111,-881.73,0.00019452,2]
[376477056,1753991445121,-872.66,0.00019452,2]
[376477057,1753991445132,-460.0,0.00019452,2]
[376477058,1753991445141,-953.29,0.00019452,2]
[376477059,1753991445151,-460.0,0.00019452,2]
[376477060,1753991445160,-460.0,0.00019452,2]
[376477061,1753991445169,-1690.67,0.00019452,2]
[376477062,1753991445178,-460.0,0.00019452,2]
[376477063,1753991445187,-460.0,0.00019452,2]
[376477064,1753991445196,-460.0,0.00019452,2]
[376477065,1753991445206,-642.08,0.00019452,2]
[376477066,1753991445214,-460.0,0.00019452,2]
[376477067,1753991445223,-3921.55,0.00019452,2]
[376477068,1753991445233,-460.0,0.00019452,2]
[376477069,1753991445242,-464.02717962,0.00019452,2]
[376477070,1753991445251,-995.56,0.00019452,2]
[376477071,1753991445260,-713.79,0.00019452,2]
[376477072,1753991445270,-460.0,0.00019452,2]
[376477073,1753991445279,-460.0,0.00019452,2]
[376477074,1753991445288,-3837.9,0.00019452,2]
[376477075,1753991445297,-2791.51,0.00019452,2]
[376477076,1753991445307,-460.0,0.00019452,2]
[376477077,1753991445316,-1021.97,0.00019452,2]
[376477078,1753991445325,-574.56,0.00019452,2]
[376477079,1753991445334,-460.0,0.00019452,2]
[376477080,1753991445343,-460.0,0.00019452,2]
[376477081,1753991445352,-460.0,0.00019452,2]
[376477082,1753991445361,-1304.05,0.00019452,2]
[376477083,1753991445370,-460.0,0.00019452,2]
[376477084,1753991445380,-189.499,0.00019452,2]
[376477085,1753991445389,-800.75,0.00019452,2]
[376477086,1753991445398,-460.0,0.00019452,2]
[376477087,1753991445406,-726.6,0.00019452,2]
[376477088,1753991445415,-492.75,0.00019452,2]
[376477089,1753991445424,-2771.46,0.00019452,2]
[376477090,1753991445434,-2411.64,0.00019452,2]
[376477091,1753991445443,-890.76,0.00019452,2]
[376477092,1753991445452,-860.57,0.00019452,2]
[376477093,1753991445461,-460.0,0.00019452,2]
[376477094,1753991445471,-460.0,0.00019452,2]
[376477095,1753991445480,-8362.36,0.00019452,2]
[376477096,1753991445489,-887.42,0.00019452,2]
[376477097,1753991445499,-460.0,0.00019452,2]
[376477098,1753991445510,-3653.74,0.00019452,2]
[376477099,1753991445519,-878.75,0.00019452,2]
[376477100,1753991445529,-460.0,0.00019452,2]
[376477101,1753991445538,-460.0,0.00019452,2]
[376477102,1753991445549,-460.0,0.00019452,2]
[376477104,1753991445558,-460.0,0.00019452,2]
[376477106,1753991445567,-460.0,0.00019452,2]
[376477107,1753991445576,-460.0,0.00019452,2]
[376477109,1753991445586,-460.0,0.00019452,2]
[376477111,1753991445595,-460.0,0.00019452,2]
[376477113,1753991445605,-460.0,0.00019452,2]
[376477115,1753991445614,-460.0,0.00019452,2]
[376477117,1753991445624,-3730.22,0.00019452,2]
[376477119,1753991445634,-460.0,0.00019452,2]
[376477121,1753991445643,-878.18,0.00019452,2]
[376477123,1753991445652,-2978.46,0.00019452,2]
[376477125,1753991445661,-460.0,0.00019452,2]
[376477127,1753991445671,-460.0,0.00019452,2]
[376477129,1753991445680,-460.0,0.00019452,2]
[376477131,1753991445690,-617.33,0.00019452,2]
[376477133,1753991445699,-1163.45,0.00019452,2]
[376477135,1753991445708,-2766.0,0.00019452,2]
[376477137,1753991445717,-1485.0,0.00019452,2]
[376477139,1753991445726,-497.23,0.00019452,2]
[376477140,1753991445736,-460.0,0.00019452,2]
[376477141,1753991445745,-460.0,0.00019452,2]
[376477142,1753991445755,-1035.92,0.00019452,2]
[376477143,1753991445765,-460.0,0.00019452,2]
[376477144,1753991445774,-158.44706921,0.00019452,2]
[376477145,1753991445784,-920.57,0.00019452,2]
[376477146,1753991445794,-460.0,0.00019452,2]
[376477147,1753991445804,-508.55,0.00019452,2]
[376477148,1753991445813,-460.0,0.00019452,2]
[376477149,1753991445823,-460.0,0.00019452,2]
[376477150,1753991445832,-460.0,0.00019452,2]
[376477152,1753991445843,-723.68,0.00019452,2]
[376477154,1753991445852,-460.0,0.00019452,2]
[376477157,1753991445861,-460.0,0.00019452,2]
[376477160,1753991445870,-482.75,0.00019452,2]
[376477163,1753991445879,-855.72,0.00019452,2]
[376477166,1753991445890,-460.0,0.00019452,2]
[376477168,1753991445899,-460.0,0.00019452,2]
[376477170,1753991445909,-1201.33,0.00019452,2]
[376477172,1753991445919,-484.66599022,0.00019452,2]
[376477174,1753991445929,-471.45789185,0.00019452,2]
[376477176,1753991445939,-460.0,0.00019452,2]
[376477178,1753991445949,-511.46,0.00019452,2]
[376477180,1753991445958,-994.83,0.00019452,2]
[376477181,1753991445968,-460.0,0.00019452,2]
[376477183,1753991445977,-921.03,0.00019452,2]
[376477184,1753991445987,-460.0,0.00019452,2]
[376477186,1753991445997,-443.15987354,0.00019452,2]
[376477188,1753991446006,-808.59,0.00019452,2]
[376477189,1753991446015,-460.0,0.00019452,2]
[376477190,1753991446025,-200.0,0.00019459,15]
[376477191,1753991446034,-200.0,0.00019459,15]
[376477192,1753991446044,-200.0,0.00019459,15]
[376477193,1753991446053,-200.0,0.00019459,15]
[376477194,1753991446063,-200.0,0.00019459,15]
[376477195,1753991446072,-200.0,0.00019459,15]
[376477196,1753991446082,-200.0,0.00019459,15]
[376477197,1753991446092,-200.0,0.00019459,15]
[376477198,1753991446102,-392.34892772,0.00019489,2]
[376477199,1753991446111,-871.54,0.000195,2]
[376477200,1753991446121,-2146.0,0.00019514,2]
[376477201,1753991446133,-970.0,0.00019514,2]
[376477202,1753991446142,-635.0,0.00019514,2]
[376477203,1753991446151,-150.0,0.00019514,2]
[376477204,1753991446160,-392.34892772,0.00019695,2]
[376477205,1753991446169,-1000.0,0.00019721,2]
[376477206,1753991446179,-500.0,0.00019721,2]
[376477207,1753991446189,-500.0,0.00019721,2]
[376477208,1753991446198,-500.0,0.00019721,2]
[376477209,1753991446207,-1000.0,0.00019721,2]
[376477210,1753991446218,-151.0,0.00019726,2]
[376477211,1753991446227,-151.0,0.00019726,2]
[376477212,1753991446237,-203.211659,0.00019726,2]
[376477213,1753991446247,-203.211659,0.00019726,2]
[376477214,1753991446256,-203.211659,0.00019726,2]
[376477215,1753991446266,-460.0,0.00019726,2]
[376477216,1753991446276,-460.0,0.00019726,2]
[376477217,1753991446285,-460.0,0.00019726,2]
[376477218,1753991446295,-460.0,0.00019726,2]
[376477219,1753991446304,-460.0,0.00019726,2]
[376477220,1753991446314,-460.0,0.00019726,2]
[376477221,1753991446324,-460.0,0.00019726,2]
[376477222,1753991446334,-460.0,0.00019726,2]
[376477223,1753991446343,-460.0,0.00019726,2]
[376477224,1753991446354,-595.04,0.00019726,2]
[376477225,1753991446364,-606.49,0.00019726,2]
[376477227,1753991446373,-575.94,0.00019726,2]
[376477229,1753991446383,-460.0,0.00019726,2]
[376477231,1753991446393,-743.5,0.00019726,2]
[376477232,1753991446403,-524.53,0.00019726,2]
[376477233,1753991446412,-222.92,0.00019726,2]
[376477234,1753991446421,-1106.86,0.00019726,2]
[376477235,1753991446431,-460.0,0.00019726,2]
[376477236,1753991446441,-560.56,0.00019726,2]
[376477237,1753991446450,-460.0,0.00019726,2]
[376477238,1753991446460,-460.0,0.00019726,2]
[376477239,1753991446470,-460.0,0.00019726,2]
[376477240,1753991446479,-460.0,0.00019726,2]
[376477241,1753991446489,-536.26,0.00019726,2]
[376477242,1753991446500,-704.63,0.00019726,2]
[376477243,1753991446510,-460.0,0.00019726,2]
[376477244,1753991446520,-488.99,0.00019726,2]
[376477245,1753991446531,-460.0,0.00019726,2]
[376477246,1753991446540,-460.0,0.00019726,2]
[376477247,1753991446550,-460.0,0.00019726,2]
[376477249,1753991446559,-460.0,0.00019726,2]
[376477250,1753991446568,-460.0,0.00019726,2]
[376477251,1753991446579,-460.0,0.00019726,2]
[376477252,1753991446588,-460.0,0.00019726,2]
[376477253,1753991446597,-737.34,0.00019726,2]
[376477254,1753991446606,-460.0,0.00019726,2]
[376477255,1753991446615,-568.32,0.00019726,2]
[376477256,1753991446624,-525.69,0.00019726,2]
[376477257,1753991446634,-460.0,0.00019726,2]
[376477258,1753991446643,-460.0,0.00019726,2]
[376477259,1753991446652,-200.18986227,0.00019726,2]
[376477260,1753991446662,-460.0,0.00019726,2]
[376477261,1753991446671,-460.0,0.00019726,2]
[376477262,1753991446680,-432.66468537,0.00019726,2]
[376477263,1753991446689,-460.0,0.00019726,2]
[376477264,1753991446698,-460.0,0.00019726,2]
[376477265,1753991446708,-3017.45,0.00019726,2]
[376477266,1753991446717,-460.0,0.00019726,2]
[376477267,1753991446726,-460.0,0.00019726,2]
[376477268,1753991446735,-497.4,0.00019726,2]
[376477269,1753991446744,-460.0,0.00019726,2]
[376477270,1753991446753,-8884.18,0.00019726,2]
[376477271,1753991446762,-460.0,0.00019726,2]
[376477272,1753991446772,-668.54,0.00019726,2]
[376477273,1753991446781,-766.5,0.00019726,2]
[376477274,1753991446790,-460.0,0.00019726,2]
[376477275,1753991446799,-3749.32,0.00019726,2]
[376477276,1753991446808,-833.17,0.00019726,2]
[376477277,1753991446817,-460.0,0.00019726,2]
[376477279,1753991446827,-736.72,0.00019726,2]
[376477280,1753991446836,-1856.34,0.00019726,2]
[376477282,1753991446845,-460.0,0.00019726,2]
[376477284,1753991446854,-5969.71,0.00019726,2]
[376477286,1753991446863,-791.01,0.00019726,2]
[376477288,1753991446872,-460.0,0.00019726,2]
[376477290,1753991446881,-923.32,0.00019726,2]
[376477292,1753991446892,-460.0,0.00019726,2]
[376477294,1753991446900,-1964.36,0.00019726,2]
[376477296,1753991446910,-1028.7,0.00019726,2]
[376477298,1753991446920,-460.0,0.00019726,2]
[376477300,1753991446929,-460.0,0.00019726,2]
[376477302,1753991446939,-534.04,0.00019726,2]
[376477304,1753991446948,-2073.39,0.00019726,2]
[376477306,1753991446957,-1824.53,0.00019726,2]
[376477308,1753991446966,-881.73,0.00019726,2]
[376477310,1753991446975,-872.66,0.00019726,2]
[376477312,1753991446984,-953.29,0.00019726,2]
[376477314,1753991446993,-460.0,0.00019726,2]
[376477316,1753991447002,-460.0,0.00019726,2]
[376477318,1753991447011,-1690.67,0.00019726,2]
[376477320,1753991447020,-571.66412621,0.00019726,2]
[376477322,1753991447030,-460.0,0.00019726,2]
[376477324,1753991447040,-460.0,0.00019726,2]
[376477326,1753991447050,-642.08,0.00019726,2]
[376477328,1753991447060,-460.0,0.00019726,2]
[376477330,1753991447069,-3921.55,0.00019726,2]
[376477332,1753991447078,-460.0,0.00019726,2]
[376477334,1753991447088,-995.56,0.00019726,2]
[376477336,1753991447097,-713.79,0.00019726,2]
[376477338,1753991447106,-460.0,0.00019726,2]
[376477340,1753991447115,-460.0,0.00019726,2]
[376477342,1753991447124,-3837.9,0.00019726,2]
[376477344,1753991447136,-2791.51,0.00019726,2]
[376477346,1753991447145,-460.0,0.00019726,2]
[376477348,1753991447155,-1021.97,0.00019726,2]
[376477350,1753991447163,-574.56,0.00019726,2]
[376477352,1753991447173,-460.0,0.00019726,2]
[376477354,1753991447182,-460.0,0.00019726,2]
[376477356,1753991447191,-460.0,0.00019726,2]
[376477358,1753991447201,-1304.05,0.00019726,2]
[376477359,1753991447209,-460.0,0.00019726,2]
[376477361,1753991447218,-800.75,0.00019726,2]
[376477363,1753991447228,-460.0,0.00019726,2]
[376477365,1753991447237,-726.6,0.00019726,2]
[376477367,1753991447246,-492.75,0.00019726,2]
[376477369,1753991447255,-2771.46,0.00019726,2]
[376477371,1753991447264,-2411.64,0.00019726,2]
[376477373,1753991447273,-890.76,0.00019726,2]
[376477375,1753991447283,-860.57,0.00019726,2]
[376477377,1753991447291,-460.0,0.00019726,2]
[376477379,1753991447301,-460.0,0.00019726,2]
[376477381,1753991447310,-8362.36,0.00019726,2]
[376477383,1753991447320,-887.42,0.00019726,2]
[376477386,1753991447329,-3653.74,0.00019726,2]
[376477388,1753991447338,-878.75,0.00019726,2]
[376477389,1753991447347,-460.0,0.00019726,2]
[376477392,1753991447357,-460.0,0.00019726,2]
[376477393,1753991447366,-460.0,0.00019726,2]
[376477395,1753991447375,-460.0,0.00019726,2]
[376477397,1753991447385,-460.0,0.00019726,2]
[376477399,1753991447395,-460.0,0.00019726,2]
[376477401,1753991447403,-3730.22,0.00019726,2]
[376477403,1753991447412,-460.0,0.00019726,2]
[376477405,1753991447421,-878.18,0.00019726,2]
[376477407,1753991447431,-2978.46,0.00019726,2]
[376477409,1753991447440,-546.77991401,0.00019726,2]
[376477411,1753991447449,-460.0,0.00019726,2]
[376477413,1753991447459,-617.33,0.00019726,2]
[376477415,1753991447469,-1163.45,0.00019726,2]
[376477417,1753991447478,-2766.0,0.00019726,2]
[376477419,1753991447487,-1485.0,0.00019726,2]
[376477421,1753991447499,-497.23,0.00019726,2]
[376477423,1753991447509,-460.0,0.00019726,2]
[376477425,1753991447518,-1035.92,0.00019726,2]
[376477427,1753991447528,-460.0,0.00019726,2]
[376477429,1753991447537,-920.57,0.00019726,2]
[376477431,1753991447547,-460.0,0.00019726,2]
[376477433,1753991447556,-508.55,0.00019726,2]
[376477435,1753991447565,-460.0,0.00019726,2]
[376477437,1753991447575,-460.0,0.00019726,2]
[376477439,1753991447584,-460.0,0.00019726,2]
[376477441,1753991447594,-723.68,0.00019726,2]
[376477442,1753991447603,-460.0,0.00019726,2]
[376477444,1753991447612,-460.0,0.00019726,2]
[376477446,1753991447621,-482.75,0.00019726,2]
[376477448,1753991447631,-855.72,0.00019726,2]
[376477450,1753991447642,-460.0,0.00019726,2]
[376477452,1753991447651,-460.0,0.00019726,2]
[376477454,1753991447661,-1201.33,0.00019726,2]
[376477457,1753991447671,-511.46,0.00019726,2]
[376477458,1753991447680,-818.93287175,0.00019726,2]
[376477484,1753991447917,-827.83,0.00019178,2]
[376477486,1753991447927,-128.6303919,0.00019452,2]
[376477489,1753991447944,-699.1996081,0.00019452,2]
[376477491,1753991447953,-175.89712825,0.00019726,2]
[376477493,1753991447963,-460.0,0.00019726,2]
[376477495,1753991447972,-921.03,0.00019726,2]
[376477497,1753991447981,-460.0,0.00019726,2]
[376477499,1753991447991,-808.59,0.00019726,2]
[376477501,1753991448001,-460.0,0.00019726,2]
[376477503,1753991448012,-151.0,0.00019773,2]
[376477505,1753991448021,-392.34892772,0.000199,2]
[376477507,1753991448030,-10205.61533991,0.000199,2]
[376477508,1753991448040,-156.332005,0.00019968,3]
[376477511,1753991448050,-151.0,0.0002,2]
[376477513,1753991448059,-151.0,0.0002,2]
[376477515,1753991448069,-238.9134297,0.0002,2]
[376477517,1753991448078,-151.0,0.0002,2]
[376477519,1753991448088,-203.211659,0.0002,2]
[376477521,1753991448097,-203.211659,0.0002,2]
[376477523,1753991448106,-460.0,0.0002,2]
[376477525,1753991448115,-460.0,0.0002,2]
[376477527,1753991448126,-460.0,0.0002,2]
[376477528,1753991448135,-460.0,0.0002,2]
[376477530,1753991448145,-249.35377325,0.0002,2]
[376477533,1753991448155,-460.0,0.0002,2]
[376477534,1753991448165,-460.0,0.0002,2]
[376477536,1753991448175,-460.0,0.0002,2]
[376477538,1753991448184,-460.0,0.0002,2]
[376477540,1753991448193,-595.04,0.0002,2]
[376477542,1753991448203,-151.0,0.0002,2]
[376477545,1753991448214,-606.49,0.0002,2]
[376477547,1753991448223,-151.0,0.0002,2]
[376477549,1753991448233,-575.94,0.0002,2]
[376477550,1753991448242,-151.0,0.0002,2]
[376477552,1753991448252,-362.92821314,0.0002,2]
[376477554,1753991448263,-743.5,0.0002,2]
[376477556,1753991448273,-524.53,0.0002,2]
[376477558,1753991448283,-1106.86,0.0002,2]
[376477560,1753991448293,-151.0,0.0002,2]
[376477562,1753991448303,-151.0,0.0002,2]
[376477564,1753991448313,-460.0,0.0002,2]
[376477566,1753991448322,-560.56,0.0002,2]
[376477568,1753991448331,-1150.0,0.0002,5]
[376477570,1753991448341,-460.0,0.0002,2]
[376477572,1753991448351,-401.10302455,0.0002,2]
[376477574,1753991448360,-460.0,0.0002,2]
[376477576,1753991448369,-460.0,0.0002,2]
[376477578,1753991448379,-90.34523238,0.0002,2]
[376477594,1753991448538,-445.91476762,0.0002,2]
[376477596,1753991448549,-151.0,0.0002,2]
[376477598,1753991448559,-151.0,0.0002,2]
[376477600,1753991448568,-704.63,0.0002,2]
[376477602,1753991448579,-460.0,0.0002,2]
[376477604,1753991448588,-488.99,0.0002,2]
[376477606,1753991448597,-460.0,0.0002,2]
[376477608,1753991448607,-460.0,0.0002,2]
[376477610,1753991448616,-151.0,0.0002,2]
[376477612,1753991448626,-338.405847,0.0002,2]
[376477614,1753991448638,-460.0,0.0002,2]
[376477616,1753991448647,-338.405847,0.0002,2]
[376477618,1753991448657,-460.0,0.0002,2]
[376477620,1753991448666,-460.0,0.0002,2]
[376477622,1753991448676,-474.55858169,0.0002,2]
[376477624,1753991448685,-737.34,0.0002,2]
[376477626,1753991448694,-460.0,0.0002,2]
[376477628,1753991448704,-259.961064,0.0002,2]
[376477630,1753991448714,-259.961064,0.0002,2]
[376477632,1753991448723,-568.32,0.0002,2]
[376477634,1753991448733,-525.69,0.0002,2]
[376477636,1753991448744,-460.0,0.0002,2]
[376477639,1753991448756,-151.733625,0.0002,2]
[376477641,1753991448766,-460.0,0.0002,2]
[376477643,1753991448778,-460.0,0.0002,2]
[376477644,1753991448788,-460.0,0.0002,2]
[376477646,1753991448797,-460.0,0.0002,2]
[376477648,1753991448807,-683.15508578,0.0002,2]
[376477657,1753991449107,-463.68114907,0.00019178,2]
[376477658,1753991449117,-460.0,0.00019178,2]
[376477659,1753991449126,-460.0,0.00019178,2]
[376477660,1753991449137,-827.83,0.00019726,2]
[376477661,1753991449146,-2334.29491422,0.0002,2]
[376477662,1753991449156,-460.0,0.0002,2]
[376477663,1753991449165,-521.30661504,0.0002,2]
[376477664,1753991449174,-460.0,0.0002,2]
[376477665,1753991449183,-497.4,0.0002,2]
[376477666,1753991449192,-460.0,0.0002,2]
[376477667,1753991449202,-8884.18,0.0002,2]
[376477668,1753991449211,-460.0,0.0002,2]
[376477669,1753991449220,-668.54,0.0002,2]
[376477670,1753991449229,-766.5,0.0002,2]
[376477671,1753991449239,-150.0,0.0002,10]
[376477672,1753991449248,-674.0,0.0002,2]
[376477673,1753991449258,-460.0,0.0002,2]